bitfinex/quotes_SOLUSD_20250616
["timestamp","ask_amount","ask_price","bid_price","bid_amount"]
[1750115851981,30.34,153.59,153.58,9.74468931]
[1750115852209,8.52796315,153.6,153.57,9.74468931]
[1750115852395,8.52796315,153.6,153.52,26.0]
[1750115852396,38.86796315,153.6,153.52,26.0]
[1750115852572,38.86796315,153.6,153.56,9.74468931]
[1750115853202,38.86796315,153.6,153.57,6.51168848]
[1750115853203,9.74468931,153.59,153.57,6.51168848]
[1750115853380,48.61265246,153.6,153.57,6.51168848]
[1750115855106,18.27265246,153.6,153.55,26.02578154]
[1750115855395,40.04468931,153.59,153.55,26.02578154]
[1750115855793,9.74468931,153.58,153.53,6.513385]
[1750115856001,9.74468931,153.56,153.53,6.513385]
[1750115856173,30.3,153.55,153.53,6.513385]
[1750115856879,40.04468931,153.55,153.53,6.513385]
[1750115857604,30.26,153.54,153.53,32.54153682]
[1750115858290,30.26,153.54,153.53,22.79684751]
[1750115858786,30.26,153.54,153.53,32.54153682]
[1750115858990,30.26,153.54,153.53,22.79684751]
[1750115860075,30.26,153.54,153.53,6.513385]
[1750115861203,30.18,153.55,153.53,6.513385]
[1750115861382,27.17761201,153.6,153.53,6.513385]
[1750115861578,49.25613357,153.59,153.53,6.513385]
[1750115862093,9.74468931,153.56,153.53,6.513385]
[1750115862277,30.16,153.55,153.53,6.513385]
[1750115865309,30.16,153.55,153.53,16.25807431]
[1750115865518,30.16,153.55,153.53,6.513385]
[1750115867087,30.04,153.54,153.53,6.513385]
[1750115868217,30.04,153.54,153.53,16.25807431]
[1750115868596,29.98,153.56,153.53,32.54153682]
[1750115869004,29.94,153.55,153.53,32.54153682]
[1750115869609,29.94,153.55,153.53,22.79684751]
[1750115869915,29.94,153.55,153.53,6.513385]
[1750115870704,9.74468931,153.54,153.52,14.53373414]
[1750115870903,29.94,153.55,153.52,14.53373414]
[1750115871104,39.68468931,153.55,153.52,14.53373414]
[1750115871802,29.94,153.55,153.52,14.53373414]
[1750115872200,29.94,153.55,153.52,40.56294663]
[1750115872400,8.52796315,153.6,153.54,9.74468931]
[1750115872620,18.27265246,153.6,153.56,9.74468931]
[1750115872922,29.9,153.59,153.56,9.74468931]
[1750115873693,18.27265246,153.6,153.56,9.74468931]
[1750115874010,29.88,153.59,153.56,9.74468931]
[1750115874214,18.27265246,153.6,153.56,9.74468931]
[1750115874215,18.27265246,153.6,153.57,6.51168848]
[1750115874534,29.88,153.59,153.57,6.51168848]
[1750115875115,9.74468931,153.59,153.57,6.51168848]
[1750115875305,29.88,153.58,153.57,6.51168848]
[1750115875691,18.27265246,153.6,153.57,6.51168848]
[1750115875897,29.88,153.59,153.57,6.51168848]
[1750115876307,29.88,153.58,153.57,6.51168848]
[1750115876927,18.27265246,153.6,153.57,6.51168848]
[1750115877106,29.88,153.59,153.57,6.51168848]
[1750115877513,29.88,153.59,153.56,6.51211252]
[1750115878112,39.62468931,153.59,153.56,6.51211252]
[1750115879924,9.74468931,153.57,153.53,6.513385]
[1750115880239,29.88,153.56,153.53,6.513385]
[1750115880559,39.62468931,153.56,153.53,6.513385]
[1750115881025,29.88,153.56,153.53,6.513385]
[1750115881218,39.62468931,153.56,153.53,6.513385]
[1750115881809,39.62468931,153.56,153.52,6.51380927]
[1750115882294,39.62468931,153.56,153.52,22.79833245]
[1750115882621,9.74468931,153.55,153.52,22.79833245]
[1750115883523,39.62468931,153.56,153.52,22.79833245]
[1750115883909,9.74468931,153.55,153.52,22.79833245]
[1750115884328,39.62468931,153.56,153.52,22.79833245]
[1750115885112,28.39433817,153.59,153.54,9.74468931]
[1750115885404,19.77446117,153.6,153.58,9.74468931]
[1750115885603,29.88,153.59,153.58,9.74468931]
[1750115885831,18.64964886,153.65,153.58,16.25595379]
[1750115886040,29.88,153.64,153.61,9.74468931]
[1750115886246,9.74468931,153.68,153.63,9.74468931]
[1750115886448,29.88,153.67,153.63,9.74468931]
[1750115886809,9.74468931,153.68,153.63,9.74468931]
[1750115887120,39.62468931,153.67,153.59,7.76]
[1750115887326,29.88,153.67,153.63,9.74468931]
[1750115887519,39.62468931,153.67,153.59,7.76]
[1750115887810,39.62468931,153.67,153.63,6.50914534]
[1750115888540,29.88,153.66,153.63,6.50914534]
[1750115889108,29.88,153.66,153.63,32.52669802]
[1750115889308,29.88,153.66,153.63,22.78200871]
[1750115889540,39.60468931,153.65,153.63,6.50914534]
[1750115889904,39.60468931,153.65,153.6,26.01999287]
[1750115889905,39.60468931,153.65,153.61,6.50999283]
[1750115890931,29.86,153.64,153.61,6.50999283]
[1750115891321,39.60468931,153.64,153.61,6.50999283]
[1750115891725,29.86,153.64,153.61,6.50999283]
[1750115892524,9.74468931,153.62,153.61,6.50999283]
[1750115892715,9.74468931,153.62,153.6,6.51031784]
[1750115893044,29.86,153.61,153.6,6.51031784]
[1750115894549,39.60468931,153.61,153.6,6.51031784]
[1750115894714,29.86,153.61,153.6,6.51031784]
[1750115896711,29.86,153.61,153.59,7.76]
[1750115896928,29.86,153.61,153.59,14.27084054]
[1750115897341,29.86,153.61,153.54,6.51296079]
[1750115897643,9.74468931,153.58,153.54,32.54005207]
[1750115897843,39.60468931,153.57,153.54,22.79536276]
[1750115898049,29.86,153.56,153.54,22.79536276]
[1750115898221,39.60468931,153.56,153.54,6.51296079]
[1750115899761,29.86,153.56,153.54,6.51296079]
[1750115899931,9.74468931,153.55,153.54,6.51296079]
[1750115900439,39.60468931,153.56,153.54,6.51296079]
[1750115900667,9.74468931,153.55,153.54,6.51296079]
[1750115900873,18.64964886,153.55,153.53,7.76]
[1750115901036,39.58468931,153.54,153.53,7.76]
[1750115901237,29.84,153.54,153.53,7.76]
[1750115901438,29.84,153.54,153.53,14.273385]
[1750115901650,39.58468931,153.54,153.53,14.273385]
[1750115901860,29.84,153.54,153.53,14.273385]
[1750115902042,39.58468931,153.54,153.53,14.273385]
[1750115902356,29.84,153.54,153.53,14.273385]
[1750115902558,39.58468931,153.54,153.53,14.273385]
[1750115902763,29.84,153.54,153.53,14.273385]
[1750115903144,29.84,153.54,153.53,24.01807431]
[1750115903462,29.84,153.54,153.53,14.273385]
[1750115903645,9.74468931,153.56,153.53,14.273385]
[1750115903846,29.86,153.55,153.53,14.273385]
[1750115905457,39.60468931,153.55,153.53,14.273385]
[1750115906045,9.74468931,153.54,153.53,14.273385]
[1750115907466,29.86,153.55,153.53,14.273385]
[1750115907851,9.74468931,153.56,153.53,14.273385]
[1750115908049,39.60468931,153.55,153.53,14.273385]
[1750115908251,9.74468931,153.55,153.53,14.273385]
[1750115908556,29.86,153.54,153.53,14.273385]
[1750115909251,9.74468931,153.57,153.53,30.55684751]
[1750115909569,29.86,153.56,153.53,40.30153682]
[1750115909766,9.74468931,153.58,153.53,40.30153682]
[1750115909972,29.86,153.57,153.53,40.30153682]
[1750115910580,9.74468931,153.58,153.53,40.30153682]
[1750115910757,29.86,153.56,153.53,40.30153682]
[1750115911172,29.86,153.56,153.53,30.55684751]
[1750115911590,0.2,153.64,153.54,9.74468931]
[1750115911875,9.74468931,153.58,153.53,72.86846185]
[1750115912073,29.86,153.57,153.53,72.86846185]
[1750115912858,18.64964886,153.61,153.53,72.86846185]
[1750115913158,29.86,153.6,153.53,89.12377254]
[1750115913361,28.39433817,153.61,153.56,9.74468931]
[1750115913556,29.86,153.6,153.57,9.74468931]
[1750115913973,29.86,153.6,153.56,9.74468931]
[1750115914283,29.86,153.6,153.53,89.12377254]
[1750115914284,29.84,153.6,153.57,26.0]
[1750115914660,29.84,153.61,153.59,9.74468931]
[1750115914981,18.64964886,153.64,153.57,26.0]
[1750115914982,18.64964886,153.64,153.61,6.50999283]
[1750115915155,29.84,153.63,153.61,6.50999283]
[1750115915970,39.58468931,153.63,153.61,6.50999283]
[1750115916151,9.74468931,153.62,153.61,6.50999283]
[1750115916568,18.64964886,153.61,153.58,6.51126448]
[1750115916775,9.74468931,153.59,153.58,6.51126448]
[1750115917077,18.64964886,153.58,153.54,22.79499245]
[1750115917254,29.84,153.57,153.54,32.53968176]
[1750115917764,29.84,153.57,153.54,22.79499245]
[1750115918102,29.84,153.57,153.54,32.53968176]
[1750115919148,29.84,153.57,153.54,22.79499245]
[1750115920565,28.39433817,153.61,153.56,9.74468931]
[1750115920760,29.84,153.6,153.57,9.74468931]
[1750115920978,9.74468931,153.6,153.54,55.3597964]
[1750115921171,29.84,153.59,153.54,55.3597964]
[1750115921482,29.84,153.59,153.55,9.74468931]
[1750115921679,29.84,153.58,153.56,9.74468931]
[1750115922584,29.84,153.58,153.54,55.3597964]
[1750115922790,29.84,153.58,153.56,9.74468931]
[1750115923490,9.74468931,153.62,153.57,32.53559899]
[1750115923662,29.84,153.61,153.57,22.79090968]
[1750115923978,29.84,153.61,153.58,9.74468931]
[1750115924183,29.84,153.61,153.57,32.53559899]
[1750115924363,29.84,153.6,153.57,32.53559899]
[1750115924880,18.64964886,153.63,153.58,9.74468931]
[1750115925069,9.74468931,153.64,153.59,9.74468931]
[1750115925268,9.74468931,153.64,153.6,22.78645832]
[1750115925605,29.84,153.63,153.6,22.78645832]
[1750115925879,9.74468931,153.64,153.6,22.78645832]
[1750115925880,29.84,153.62,153.6,22.78645832]
[1750115927160,29.84,153.62,153.6,16.27604166]
[1750115927579,29.82,153.61,153.6,16.27604166]
[1750115929065,28.39433817,153.65,153.6,26.02073097]
[1750115929375,29.82,153.64,153.63,9.74468931]
[1750115929584,6.3751,153.71,153.63,9.74468931]
[1750115929886,6.3751,153.71,153.61,7.72]
[1750115929887,58.21433817,153.7,153.64,9.74468931]
[1750115930376,9.74468931,153.69,153.64,9.74468931]
[1750115930889,9.74468931,153.69,153.61,7.72]
[1750115931069,9.74468931,153.69,153.64,9.74468931]
[1750115931267,9.74468931,153.69,153.62,22.78349172]
[1750115931587,9.74468931,153.69,153.64,9.74468931]
[1750115931885,48.46964886,153.7,153.62,22.78349172]
[1750115932087,9.74468931,153.69,153.64,9.74468931]
[1750115932682,9.74468931,153.68,153.63,9.74468931]
[1750115932884,29.82,153.67,153.63,9.74468931]
[1750115933068,29.82,153.67,153.62,32.52818103]
[1750115933069,39.56468931,153.67,153.62,32.52818103]
[1750115933294,18.64964886,153.63,153.62,6.50956906]
[1750115933496,58.21433817,153.63,153.61,14.22985491]
[1750115933793,18.64964886,153.61,153.5,39.01712174]
[1750115933997,9.74468931,153.55,153.51,14.2142336]
[1750115934302,29.8,153.56,153.54,9.74468931]
[1750115934591,29.8,153.56,153.52,9.74468931]
[1750115934889,29.8,153.56,153.53,9.74468931]
[1750115935285,29.8,153.56,153.53,22.79684751]
[1750115935777,29.8,153.56,153.54,9.74468931]
[1750115935975,29.8,153.56,153.53,22.79684751]
[1750115936176,29.8,153.56,153.53,32.54153682]
[1750115937610,29.8,153.56,153.44,7.6584]
[1750115937906,39.54468931,153.56,153.45,36.09433817]
[1750115938083,39.54468931,153.56,153.51,9.74468931]
[1750115938284,29.8,153.55,153.54,9.74468931]
[1750115938700,29.8,153.55,153.53,9.74468931]
[1750115939616,29.8,153.55,153.54,6.51296079]
[1750115940650,18.64964886,153.54,153.48,16.28798789]
[1750115940820,9.74468931,153.49,153.46,6.51635605]
[1750115941111,29.8,153.48,153.46,6.51635605]
[1750115941300,9.74468931,153.47,153.46,6.51635605]
[1750115941689,39.54468931,153.48,153.46,6.51635605]
[1750115941920,29.8,153.48,153.46,6.51635605]
[1750115942399,44.64964886,153.51,153.46,32.55193549]
[1750115942400,9.74468931,153.51,153.46,32.55193549]
[1750115942591,29.8,153.5,153.46,22.80724618]
[1750115942791,29.8,153.49,153.46,32.55193549]
[1750115943006,29.8,153.49,153.46,22.80724618]
[1750115943706,29.8,153.49,153.46,32.55193549]
[1750115944013,29.8,153.49,153.47,9.74468931]
[1750115944186,29.8,153.49,153.46,22.80724618]
[1750115944586,29.8,153.49,153.46,32.55193549]
[1750115944791,29.8,153.49,153.47,9.74468931]
[1750115945013,29.8,153.49,153.46,32.55193549]
[1750115945631,39.54468931,153.49,153.46,6.51635605]
[1750115945807,29.8,153.49,153.46,6.51635605]
[1750115946921,29.8,153.49,153.46,16.26104536]
[1750115947902,6.351,153.59,153.5,26.0]
[1750115948105,6.351,153.59,153.52,9.74468931]
[1750115948106,9.74468931,153.57,153.52,9.74468931]
[1750115948416,9.74468931,153.56,153.51,9.74468931]
[1750115948617,39.54468931,153.58,153.54,9.74468931]
[1750115948801,29.8,153.58,153.54,9.74468931]
[1750115949117,29.8,153.58,153.5,26.0]
[1750115949118,39.54468931,153.58,153.53,9.74468931]
[1750115949415,9.74468931,153.56,153.5,26.0]
[1750115949630,18.64964886,153.57,153.53,9.74468931]
[1750115949921,28.39433817,153.57,153.54,6.51296079]
[1750115950288,9.74468931,153.56,153.54,6.51296079]
[1750115950516,18.64964886,153.57,153.54,6.51296079]
[1750115950717,9.74468931,153.55,153.51,6.5142336]
[1750115951023,29.8,153.54,153.51,6.5142336]
[1750115951727,39.54468931,153.54,153.51,6.5142336]
[1750115951895,39.54468931,153.54,153.49,9.74468931]
[1750115952098,9.74468931,153.53,153.48,16.26019621]
[1750115952307,39.54468931,153.54,153.49,9.74468931]
[1750115952614,9.74468931,153.53,153.49,9.74468931]
[1750115952807,29.8,153.54,153.49,9.74468931]
[1750115953017,39.54468931,153.54,153.49,9.74468931]
[1750115953209,9.74468931,153.53,153.48,22.80427416]
[1750115953524,9.74468931,153.53,153.49,9.74468931]
[1750115953823,29.8,153.54,153.5,6.51465798]
[1750115954023,39.54468931,153.54,153.5,6.51465798]
[1750115954220,29.8,153.54,153.5,16.25934729]
[1750115954520,39.54468931,153.54,153.5,6.51465798]
[1750115954825,9.74468931,153.53,153.5,6.51465798]
[1750115955198,9.74468931,153.52,153.5,6.51465798]
[1750115955398,29.8,153.51,153.5,6.51465798]
[1750115955711,39.54468931,153.51,153.48,6.5155069]
[1750115955916,39.54468931,153.51,153.47,6.51593145]
[1750115956222,9.74468931,153.48,153.45,14.21642125]
[1750115956421,29.8,153.47,153.45,14.21642125]
[1750115957219,29.8,153.47,153.45,23.96111056]
[1750115957424,0.2,153.52,153.46,9.74468931]
[1750115957604,29.8,153.51,153.48,9.74468931]
[1750115958306,29.8,153.51,153.49,6.51508241]
[1750115959107,39.54468931,153.51,153.46,6.51635605]
[1750115959618,29.8,153.51,153.46,16.26104536]
[1750115959832,39.54468931,153.51,153.47,9.74468931]
[1750115960004,39.54468931,153.51,153.46,16.26104536]
[1750115961109,9.74468931,153.49,153.46,6.51635605]
[1750115961317,29.8,153.48,153.46,16.26104536]
[1750115961803,29.8,153.49,153.46,22.80724618]
[1750115962004,29.8,153.49,153.47,9.74468931]
[1750115962210,29.8,153.49,153.46,16.26104536]
[1750115962724,29.8,153.49,153.46,6.51635605]
[1750115962905,0.2,153.48,153.46,16.26104536]
[1750115963229,0.2,153.48,153.47,9.74468931]
[1750115964036,29.8,153.51,153.46,22.80724618]
[1750115964413,18.64964886,153.54,153.46,55.38902644]
[1750115964611,0.2,153.53,153.52,9.74468931]
[1750115964919,30.0,153.53,153.5,9.74468931]
[1750115965104,0.2,153.53,153.5,9.74468931]
[1750115965304,29.8,153.52,153.46,55.38902644]
[1750115965515,29.8,153.52,153.5,9.74468931]
[1750115965802,29.8,153.52,153.51,9.74468931]
[1750115966718,29.8,153.52,153.51,16.25892291]
[1750115967917,29.8,153.52,153.51,6.5142336]
[1750115968633,29.8,153.52,153.51,16.25892291]
[1750115971112,29.78,153.52,153.51,16.25892291]
[1750115972749,0.2,153.51,153.43,22.81170565]
[1750115972911,9.74468931,153.5,153.43,22.81170565]
[1750115973117,29.78,153.49,153.47,16.26062076]
[1750115973420,9.94468931,153.51,153.47,6.51593145]
[1750115973832,29.78,153.5,153.47,6.51593145]
[1750115974136,29.78,153.49,153.47,6.51593145]
[1750115974738,29.78,153.48,153.47,6.51593145]
[1750115975747,9.74468931,153.5,153.47,6.51593145]
[1750115975928,29.78,153.49,153.47,6.51593145]
[1750115976553,39.52468931,153.49,153.47,6.51593145]
[1750115976848,9.74468931,153.48,153.42,9.74468931]
[1750115977055,9.74468931,153.47,153.42,9.74468931]
[1750115977225,29.78,153.46,153.42,22.81319254]
[1750115977419,29.78,153.46,153.42,32.55788185]
[1750115977726,9.74468931,153.45,153.42,6.51805501]
[1750115977917,0.2,153.44,153.42,6.51805501]
[1750115978253,29.78,153.43,153.42,6.51805501]
[1750115979035,29.78,153.43,153.4,61.34468931]
[1750115979238,29.78,153.43,153.4,58.11879014]
[1750115979239,9.94468931,153.42,153.4,58.11879014]
[1750115979443,29.78,153.43,153.4,6.51879014]
[1750115979444,9.94468931,153.41,153.4,6.51879014]
[1750115979660,9.74468931,153.41,153.4,6.51879014]
[1750115980326,29.78,153.43,153.4,6.51879014]
[1750115980751,9.74468931,153.41,153.4,6.51879014]
[1750115982138,18.64964886,153.42,153.4,6.51879014]
[1750115982447,29.78,153.41,153.4,16.26347945]
[1750115982654,29.78,153.41,153.4,22.81605219]
[1750115983167,29.78,153.41,153.34,26.0]
[1750115983168,18.64964886,153.4,153.34,22.82509455]
[1750115983324,9.74468931,153.39,153.34,22.82509455]
[1750115983530,39.52468931,153.38,153.34,22.82509455]
[1750115984158,9.74468931,153.37,153.34,6.52145558]
[1750115984651,9.74468931,153.36,153.34,6.52145558]
[1750115984853,29.78,153.35,153.34,6.52145558]
[1750115985053,29.78,153.35,153.33,6.52188091]
[1750115985466,9.74468931,153.34,153.33,6.52188091]
[1750115985948,18.64964886,153.33,153.32,9.0521578]
[1750115986158,28.67866131,153.33,153.32,9.0521578]
[1750115986336,28.67866131,153.33,153.32,1.3721578]
[1750115986641,29.78,153.33,153.32,7.89446408]
[1750115987931,39.52468931,153.33,153.32,7.89446408]
[1750115988938,58.17433817,153.33,153.32,1.3721578]
[1750115990966,58.45866131,153.33,153.32,1.3721578]
[1750115992053,58.17433817,153.33,153.32,7.89446408]
[1750115992241,58.17433817,153.33,153.32,1.3721578]
[1750115992827,58.45866131,153.33,153.32,1.3721578]
[1750115993235,58.17433817,153.33,153.32,1.3721578]
[1750115994050,28.39433817,153.33,153.32,1.3721578]
[1750115994243,58.45866131,153.33,153.32,1.3721578]
[1750115994930,28.39433817,153.33,153.32,7.89446408]
[1750115995154,58.17433817,153.33,153.32,1.3721578]
[1750115995555,56.85143357,153.33,153.32,1.3721578]
[1750115995859,26.0,153.24,153.19,37.47888969]
[1750115996061,29.78,153.23,153.15,1.5393]
[1750115996258,18.64964886,153.23,153.16,22.85191955]
[1750115996449,9.74468931,153.2,153.16,48.85191955]
[1750115996629,9.74468931,153.17,153.14,14.1895972]
[1750115996832,18.64964886,153.23,153.14,14.1895972]
[1750115996833,29.78,153.16,153.14,14.1895972]
[1750115997045,29.78,153.16,153.14,23.93428651]
[1750115997248,29.78,153.18,153.15,9.74468931]
[1750115997452,29.78,153.18,153.16,9.74468931]
[1750115997666,29.78,153.18,153.15,9.74468931]
[1750115997871,29.78,153.18,153.16,9.74468931]
[1750115998168,29.78,153.18,153.14,56.51452863]
[1750115998533,29.78,153.18,153.17,9.74468931]
[1750115998729,18.64964886,153.23,153.17,9.74468931]
[1750115999052,30.06,153.22,153.18,9.74468931]
[1750115999261,30.06,153.22,153.17,26.0]
[1750115999470,30.14,153.21,153.19,9.74468931]
[1750116000453,11.53054376,153.24,153.2,16.27210445]
[1750116000632,30.16,153.23,153.2,32.5906423]
[1750116001682,39.90468931,153.23,153.2,6.52741514]
[1750116002064,9.74468931,153.21,153.2,6.52741514]
[1750116002386,9.74468931,153.21,153.14,40.30986287]
[1750116002387,9.74468931,153.21,153.15,16.2742355]
[1750116002573,39.90468931,153.2,153.15,32.59810099]
[1750116002773,9.74468931,153.19,153.15,22.85341168]
[1750116002972,39.90468931,153.2,153.15,32.59810099]
[1750116003367,39.90468931,153.2,153.15,22.85341168]
[1750116003673,39.90468931,153.2,153.15,32.59810099]
[1750116003674,30.16,153.2,153.15,32.59810099]
[1750116003983,30.12,153.19,153.17,9.74468931]
[1750116004167,30.12,153.19,153.15,22.85341168]
[1750116004518,30.12,153.19,153.17,6.5286936]
[1750116005873,11.53054376,153.24,153.17,22.85042762]
[1750116006078,11.53054376,153.24,153.21,9.74468931]
[1750116006267,11.53054376,153.24,153.22,6.52656311]
[1750116006469,41.61054376,153.24,153.22,6.52656311]
[1750116006670,10.0,153.34,153.22,30.50297088]
[1750116006671,6.3024,153.32,153.22,30.50297088]
[1750116007000,9.74468931,153.28,153.24,9.74468931]
[1750116007176,30.08,153.27,153.24,9.74468931]
[1750116007498,30.08,153.26,153.24,9.74468931]
[1750116007785,9.74468931,153.29,153.25,9.74468931]
[1750116007966,30.06,153.26,153.24,9.74468931]
[1750116008388,18.64964886,153.31,153.22,30.50297088]
[1750116008389,9.74468931,153.3,153.25,22.83849918]
[1750116008720,9.74468931,153.31,153.26,9.74468931]
[1750116008898,9.74468931,153.28,153.25,6.52528548]
[1750116009101,39.78468931,153.27,153.25,6.52528548]
[1750116009317,30.04,153.27,153.25,6.52528548]
[1750116010194,30.04,153.27,153.25,16.26997479]
[1750116010806,30.0,153.26,153.25,6.52528548]
[1750116011115,18.64964886,153.25,153.22,7.66]
[1750116011314,0.28432314,153.21,153.16,7.66]
[1750116011494,9.74468931,153.17,153.16,7.66]
[1750116011822,9.74468931,153.17,153.16,17.40468931]
[1750116011823,29.98,153.17,153.16,17.40468931]
[1750116012385,29.98,153.17,153.16,23.93367802]
[1750116012893,29.98,153.17,153.16,14.18898871]
[1750116015417,11.61905598,153.23,153.16,23.93367802]
[1750116015624,29.92,153.22,153.16,23.93367802]
[1750116015839,9.74468931,153.21,153.16,23.93367802]
[1750116016639,9.74468931,153.21,153.16,40.2564777]
[1750116017133,9.74468931,153.2,153.16,30.51178839]
[1750116017332,29.86,153.19,153.16,40.2564777]
[1750116017845,29.86,153.18,153.16,40.2564777]
[1750116019241,9.74468931,153.21,153.16,40.2564777]
[1750116019427,29.82,153.2,153.16,40.2564777]
[1750116020334,29.82,153.19,153.18,16.2729567]
[1750116020521,9.74468931,153.22,153.18,32.59362519]
[1750116020843,9.74468931,153.23,153.18,32.59362519]
[1750116021016,29.82,153.22,153.18,32.59362519]
[1750116021220,6.1355,153.27,153.2,9.74468931]
[1750116021445,39.56468931,153.26,153.21,9.74468931]
[1750116021615,9.74468931,153.25,153.2,9.74468931]
[1750116021824,9.74468931,153.27,153.22,9.74468931]
[1750116022225,29.82,153.26,153.23,9.74468931]
[1750116022441,29.82,153.26,153.24,6.5257113]
[1750116022847,0.2,153.29,153.24,22.83998955]
[1750116023045,29.82,153.28,153.24,32.58467886]
[1750116023245,9.74468931,153.28,153.24,32.58467886]
[1750116023452,29.82,153.27,153.24,32.58467886]
[1750116023624,0.2,153.29,153.24,32.58467886]
[1750116023824,39.56468931,153.28,153.24,32.58467886]
[1750116024126,39.56468931,153.28,153.24,22.83998955]
[1750116024632,29.82,153.28,153.24,22.83998955]
[1750116024831,39.56468931,153.28,153.24,32.58467886]
[1750116025540,29.82,153.28,153.24,32.58467886]
[1750116025728,39.56468931,153.28,153.24,32.58467886]
[1750116025927,29.82,153.28,153.24,32.58467886]
[1750116026753,29.82,153.28,153.25,9.74468931]
[1750116026949,29.82,153.28,153.24,9.74468931]
[1750116027757,29.82,153.27,153.24,9.74468931]
[1750116028058,29.82,153.27,153.22,32.63208544]
[1750116028272,29.82,153.27,153.23,9.74468931]
[1750116028430,29.82,153.27,153.24,9.74468931]
[1750116028858,6.4512,153.31,153.26,9.74468931]
[1750116029066,39.54468931,153.3,153.22,58.63208544]
[1750116029251,39.54468931,153.3,153.26,9.74468931]
[1750116029429,9.74468931,153.32,153.28,9.74468931]
[1750116029751,29.8,153.31,153.28,9.74468931]
[1750116029951,18.64964886,153.33,153.29,9.74468931]
[1750116029952,9.74468931,153.33,153.29,9.74468931]
[1750116030155,9.74468931,153.37,153.32,9.74468931]
[1750116030339,6.6398,153.39,153.32,9.74468931]
[1750116030539,9.74468931,153.37,153.32,9.74468931]
[1750116030735,9.74468931,153.37,153.33,9.74468931]
[1750116031152,9.74468931,153.37,153.3,55.44683626]
[1750116031351,9.74468931,153.38,153.33,9.74468931]
[1750116031577,29.8,153.37,153.33,9.74468931]
[1750116032166,29.8,153.37,153.34,6.52145558]
[1750116032488,29.8,153.36,153.34,6.52145558]
[1750116032853,6.6398,153.39,153.34,16.26614489]
[1750116032854,29.8,153.35,153.34,16.26614489]
[1750116033186,29.8,153.35,153.34,6.52145558]
[1750116034172,29.8,153.35,153.33,6.52188091]
[1750116040008,29.8,153.35,153.33,16.26657022]
[1750116040586,9.74468931,153.38,153.34,9.74468931]
[1750116040796,9.74468931,153.39,153.34,9.74468931]
[1750116040996,20.31134886,153.41,153.35,9.74468931]
[1750116041300,39.52468931,153.4,153.36,9.74468931]
[1750116041499,28.39433817,153.42,153.37,9.74468931]
[1750116041708,9.74468931,153.42,153.37,9.74468931]
[1750116041879,17.6872154,153.43,153.38,9.74468931]
[1750116042079,9.74468931,153.54,153.42,26.0]
[1750116042288,10.0,153.57,153.43,7.66]
[1750116042289,6.4861,153.5,153.43,7.66]
[1750116042507,6.4861,153.5,153.44,6.51720542]
[1750116042508,9.74468931,153.48,153.44,6.51720542]
[1750116043001,9.74468931,153.47,153.44,6.51720542]
[1750116043793,9.74468931,153.47,153.44,22.81021897]
[1750116044001,28.39433817,153.48,153.44,22.81021897]
[1750116044189,9.74468931,153.47,153.44,22.81021897]
[1750116044387,18.64964886,153.48,153.44,22.81021897]
[1750116044694,28.39433817,153.48,153.44,22.81021897]
[1750116045114,9.74468931,153.47,153.44,22.81021897]
[1750116045284,28.39433817,153.48,153.44,22.81021897]
[1750116045485,29.78,153.49,153.45,9.74468931]
[1750116045788,39.52468931,153.49,153.44,32.55490828]
[1750116047486,29.78,153.48,153.44,32.55490828]
[1750116048506,39.52468931,153.48,153.44,22.81021897]
[1750116049301,29.78,153.48,153.44,22.81021897]
[1750116049614,29.78,153.48,153.44,32.55490828]
[1750116049813,39.52468931,153.48,153.44,22.81021897]
[1750116050417,29.78,153.48,153.44,32.55490828]
[1750116050612,29.78,153.48,153.44,22.81021897]
[1750116050790,39.52468931,153.48,153.44,22.81021897]
[1750116050995,29.78,153.48,153.44,32.55490828]
[1750116051196,9.74468931,153.51,153.46,9.74468931]
[1750116051416,9.74468931,153.52,153.47,9.74468931]
[1750116051613,18.64964886,153.53,153.48,9.74468931]
[1750116051614,9.74468931,153.53,153.48,9.74468931]
[1750116052121,29.76,153.52,153.48,9.74468931]
[1750116052532,29.76,153.52,153.49,6.51508241]
[1750116053342,6.0274,153.54,153.49,22.80278844]
[1750116053521,29.76,153.51,153.49,22.80278844]
[1750116054100,39.50468931,153.51,153.49,6.51508241]